bitfinex/quotes_SOLUSD_20260223
["timestamp","ask_amount","ask_price","bid_price","bid_amount"]
[1771858961324,14.06253239,80.29,80.26,14.06253239]
[1771858961527,12.45500628,80.289,80.26,0.58487756]
[1771858961831,12.45500628,80.289,80.26,14.64740995]
[1771858962134,14.06253239,80.3,80.261,0.58487756]
[1771858962334,26.51583251,80.3,80.261,0.58487756]
[1771858962541,14.06253239,80.29,80.261,0.58487756]
[1771858963543,12.45500628,80.289,80.261,13.04417522]
[1771858964127,12.45500628,80.289,80.261,0.58487756]
[1771858965345,12.45500628,80.289,80.262,12.45919613]
[1771858965843,12.45500628,80.289,80.234,0.58487756]
[1771858965844,0.32327972,80.269,80.234,0.58487756]
[1771858966053,14.06253239,80.26,80.234,0.58487756]
[1771858966343,0.32441137,80.279,80.241,0.58487756]
[1771858966640,14.06253239,80.27,80.241,0.58487756]
[1771858967253,0.32441137,80.279,80.241,0.58487756]
[1771858967622,14.06253239,80.27,80.241,0.58487756]
[1771858967839,14.06253239,80.27,80.241,12.46245447]
[1771858967840,12.4581096,80.269,80.241,12.46245447]
[1771858968042,12.4581096,80.269,80.242,0.55501421]
[1771858968338,12.4581096,80.269,80.241,12.46245447]
[1771858968339,12.4581096,80.269,80.236,12.46313634]
[1771858968524,14.06253239,80.27,80.24,14.06253239]
[1771858968729,14.06253239,80.27,80.241,0.55501421]
[1771858969408,0.32880947,80.259,80.23,0.5]
[1771858969638,14.06253239,80.25,80.23,12.9641127]
[1771858969844,0.32880947,80.259,80.23,12.9641127]
[1771858970043,12.45981708,80.258,80.23,12.9641127]
[1771858970261,12.45981708,80.258,80.23,0.1701224]
[1771858970262,14.06253239,80.24,80.23,0.1701224]
[1771858970425,14.06253239,80.24,80.22,0.2]
[1771858970749,14.06253239,80.23,80.22,0.2]
[1771858970952,14.06253239,80.23,80.2,12.46867863]
[1771858971251,14.06253239,80.24,80.211,13.0620268]
[1771858971544,12.45924316,80.262,80.231,0.59490883]
[1771858971732,0.5,80.269,80.24,14.06253239]
[1771858971933,0.5,80.269,80.241,0.59490883]
[1771858972322,12.9581827,80.269,80.242,12.46230153]
[1771858972521,14.06253239,80.25,80.22,14.65744122]
[1771858972754,14.06253239,80.25,80.221,0.59490883]
[1771858972947,14.06253239,80.26,80.231,0.59490883]
[1771858974659,12.45966184,80.259,80.231,13.05891658]
[1771858974961,12.45897255,80.264,80.232,0.59490883]
[1771858975155,12.95814612,80.269,80.232,0.59490883]
[1771858975357,14.06253239,80.26,80.232,0.59490883]
[1771858975562,14.06253239,80.26,80.23,14.06253239]
[1771858975865,14.06253239,80.26,80.231,12.46401017]
[1771858976551,14.06253239,80.26,80.232,0.59490883]
[1771858976858,43.60881645,80.259,80.221,0.59490883]
[1771858977065,43.60881645,80.259,80.211,12.46711797]
[1771858977066,14.06253239,80.23,80.211,12.46711797]
[1771858977252,14.06253239,80.23,80.21,0.1]
[1771858977559,14.06253239,80.23,80.19,14.26253239]
[1771858977560,14.06253239,80.22,80.19,0.2]
[1771858977757,14.06253239,80.2,80.19,0.2]
[1771858978339,14.06253239,80.2,80.169,0.59490883]
[1771858978550,14.06253239,80.19,80.169,0.59490883]
[1771858978745,14.06253239,80.19,80.16,14.26253239]
[1771858978746,14.06253239,80.18,80.16,0.2]
[1771858978949,14.06253239,80.17,80.16,0.2]
[1771858979245,14.10864779,80.18,80.16,0.2]
[1771858979647,14.10864779,80.17,80.16,0.2]
[1771858979847,14.10864779,80.17,80.15,0.1]
[1771858980046,14.10864779,80.16,80.15,0.1]
[1771858980250,14.10864779,80.17,80.15,0.1]
[1771858980846,14.10864779,80.17,80.139,13.07319819]
[1771858980847,43.66321934,80.159,80.117,0.59490883]
[1771858981174,6.417,80.099,80.084,12.48681584]
[1771858981475,14.10864779,80.13,80.07,14.10864779]
[1771858981476,14.10864779,80.11,80.085,0.59490883]
[1771858981682,14.10864779,80.09,80.061,0.59490883]
[1771858981973,14.10864779,80.1,80.062,0.59490883]
[1771858982142,14.10864779,80.11,80.08,14.10864779]
[1771858982346,14.10864779,80.11,80.081,0.59490883]
[1771858982555,6.5232,80.14,80.101,0.59490883]
[1771858982757,14.10864779,80.13,80.09,0.59490883]
[1771858983065,26.58843102,80.13,80.102,0.59490883]
[1771858983267,6.5232,80.14,80.091,74.9146476]
[1771858983438,6.5232,80.14,80.12,14.10864779]
[1771858983762,12.47364941,80.169,80.131,0.59490883]
[1771858983943,12.47364941,80.169,80.14,14.70355662]
[1771858984141,12.47364941,80.169,80.13,14.10864779]
[1771858984142,0.5,80.16,80.13,14.10864779]
[1771858984344,14.60864779,80.16,80.13,14.10864779]
[1771858984660,14.60864779,80.16,80.094,5.36086188]
[1771858984661,14.10864779,80.14,80.091,13.08056941]
[1771858984841,14.10864779,80.12,80.094,0.59490883]
[1771858985045,64.50899381,80.16,80.05,0.1]
[1771858985046,28.21729558,80.1,80.05,0.1]
[1771858985345,28.21729558,80.1,80.046,0.59490883]
[1771858985346,14.10864779,80.07,80.046,0.59490883]
[1771858985659,6.528,80.093,80.061,0.59490883]
[1771858985860,6.528,80.093,80.071,0.59490883]
[1771858986241,6.528,80.093,80.046,43.72478012]
[1771858986242,6.1820444,80.093,80.081,0.59490883]
[1771858986441,14.10864779,80.09,80.052,0.59490883]
[1771858986659,14.10864779,80.07,80.041,0.59490883]
[1771858986862,6.1820444,80.093,80.061,0.59490883]
[1771858987059,12.48564151,80.092,80.07,14.10864779]
[1771858987363,6.1820444,80.093,80.071,0.59490883]
[1771858987749,14.10864779,80.09,80.056,0.59490883]
[1771858988044,14.10864779,80.09,80.041,12.49359703]
[1771858988045,14.10864779,80.09,80.061,0.59490883]
[1771858988450,14.10864779,80.08,80.049,0.59490883]
[1771858988650,14.10864779,80.08,80.051,0.59490883]
[1771858989257,49.88134459,80.093,80.04,0.69490883]
[1771858989463,14.10864779,80.05,80.04,0.1]
[1771858989642,14.10864779,80.05,80.03,0.1]
[1771858989850,49.88134459,80.093,80.041,0.59490883]
[1771858990050,6.1820444,80.093,80.061,0.59490883]
[1771858990249,14.10864779,80.09,80.05,14.70355662]
[1771858990544,14.10864779,80.08,80.051,0.59490883]
[1771858990762,12.48496207,80.097,80.061,0.59490883]
[1771858990963,14.10864779,80.09,80.061,0.59490883]
[1771858991367,12.4861092,80.089,80.061,0.59490883]
[1771858991563,14.10864779,80.1,80.063,0.59490883]
[1771858991891,12.48455036,80.099,80.063,0.59490883]
[1771858992071,14.10864779,80.11,80.071,0.59490883]
[1771858992269,12.48143386,80.119,80.08,14.10864779]
[1771858992567,12.48143386,80.119,80.081,0.59490883]
[1771858992568,14.10864779,80.11,80.081,0.59490883]
[1771858993068,14.10864779,80.12,80.091,0.59490883]
[1771858993267,14.10864779,80.12,80.092,0.59490883]
[1771858993467,49.88637377,80.183,80.101,0.59490883]
[1771858993468,14.10864779,80.13,80.101,0.59490883]
[1771858993681,12.47584033,80.155,80.12,14.10864779]
[1771858993849,12.47676203,80.149,80.12,0.59490883]
[1771858994054,12.47676203,80.149,80.121,0.59490883]
[1771858994253,0.5,80.15,80.121,0.59490883]
[1771858994449,14.10864779,80.14,80.111,0.59490883]
[1771858994656,14.60864779,80.15,80.121,0.59490883]
[1771858995059,0.5,80.15,80.121,0.59490883]
[1771858995261,0.5,80.15,80.122,12.48096652]
[1771858995463,0.5,80.15,80.123,0.59490883]
[1771858995667,14.60864779,80.15,80.123,0.59490883]
[1771858995866,0.5,80.15,80.13,14.70355662]
[1771858996064,0.5,80.15,80.094,5.36086188]
[1771858996065,12.47676203,80.149,80.116,12.48185801]
[1771858996274,14.10864779,80.14,80.106,0.59490883]
[1771858996466,2.62011052,80.152,80.132,0.55501421]
[1771858996667,0.5,80.17,80.15,14.663662]
[1771858996873,0.56334799,80.189,80.16,14.10864779]
[1771858997059,14.10864779,80.18,80.15,14.10864779]
[1771858997375,0.56334799,80.159,80.08,0.55501421]
[1771858997576,0.56334799,80.159,80.079,49.9506737]
[1771858997577,14.10864779,80.16,80.13,14.10864779]
[1771858997780,0.56334799,80.171,80.131,0.57648674]
[1771858997781,14.10864779,80.17,80.131,0.57648674]
[1771858998258,14.10864779,80.15,80.111,0.57648674]
[1771858998459,14.10864779,80.17,80.131,0.57648674]
[1771858998671,14.10864779,80.16,80.131,0.57648674]
[1771858999397,112.21897911,80.201,80.104,5.36086188]
[1771858999398,0.54806742,80.199,80.151,0.55829564]
[1771858999553,49.85084193,80.24,80.141,12.47800751]
[1771858999554,14.65671521,80.21,80.18,14.10864779]
[1771858999758,12.47053835,80.189,80.15,14.10864779]
[1771858999958,12.47053835,80.189,80.144,0.55829564]
[1771858999959,14.10864779,80.18,80.144,0.55829564]
[1771859000254,20.29069219,80.18,80.144,0.55829564]
[1771859000455,14.10864779,80.17,80.132,0.55829564]
[1771859000656,6.1820444,80.18,80.141,0.55829564]
[1771859000657,20.29069219,80.18,80.141,0.55829564]
[1771859001274,0.66282189,80.18,80.17,14.10864779]
[1771859001475,0.2,80.19,80.171,12.47333823]
[1771859002871,0.2,80.19,80.166,12.47403194]
[1771859003175,14.30864779,80.19,80.166,12.47403194]
[1771859003477,14.30864779,80.19,80.114,49.92882206]
[1771859003478,0.54806742,80.179,80.124,12.48053578]
[1771859003781,14.10864779,80.15,80.124,12.48053578]
[1771859003980,0.54806742,80.139,80.092,0.55829564]
[1771859004167,0.54806742,80.152,80.11,14.10864779]
[1771859004368,14.10864779,80.15,80.11,14.10864779]
[1771859004561,14.10864779,80.14,80.11,14.10864779]
[1771859004978,14.10864779,80.13,80.09,14.66694343]
[1771859005193,14.10864779,80.11,80.084,12.48688876]
[1771859005414,14.10864779,80.11,80.053,49.96677303]
[1771859005415,3.69383402,80.143,80.071,12.48890007]
[1771859005562,14.10864779,80.13,80.1,14.10864779]
[1771859005765,34.88262601,80.157,80.08,14.10864779]
[1771859005766,14.10864779,80.11,80.08,14.10864779]
[1771859005963,0.54806742,80.129,80.09,14.10864779]
[1771859006162,34.88262601,80.157,80.071,12.48890007]
[1771859006163,14.65671521,80.11,80.071,12.48890007]
[1771859006475,14.10864779,80.08,80.054,12.49147801]
[1771859006983,14.65671521,80.11,80.07,14.10864779]
[1771859007278,14.65671521,80.11,80.052,93.68909941]
[1771859007279,14.10864779,80.12,80.09,14.10864779]
[1771859007784,0.54806742,80.129,80.09,26.59452512]
[1771859007970,12.47863464,80.137,80.1,14.10864779]
[1771859008163,12.47863464,80.137,80.091,0.55829564]
[1771859008164,14.10864779,80.13,80.091,0.55829564]
[1771859008564,14.10864779,80.13,80.1,14.10864779]
[1771859008858,14.10864779,80.11,80.09,12.48587733]
[1771859009169,43.67575121,80.136,80.1,14.10864779]
[1771859009170,14.10864779,80.13,80.1,14.10864779]
[1771859009674,12.47987619,80.129,80.092,12.48555772]
[1771859009872,0.54806742,80.128,80.092,12.48555772]
[1771859010179,12.47987619,80.129,80.081,12.48735655]
[1771859010180,14.65671521,80.12,80.081,12.48735655]
[1771859010679,14.10864779,80.12,80.082,0.55829564]
[1771859010878,14.10864779,80.14,80.11,14.10864779]
[1771859011182,14.10864779,80.15,80.12,14.10864779]
[1771859011386,0.54806742,80.15,80.12,14.10864779]
[1771859011584,14.10864779,80.16,80.12,14.10864779]
[1771859011767,12.47520552,80.159,80.121,12.4811223]
[1771859011978,0.54806742,80.149,80.12,14.10864779]
[1771859013082,14.10864779,80.15,80.12,14.10864779]
[1771859013488,14.10864779,80.16,80.13,14.10864779]
[1771859013671,0.54806742,80.158,80.124,12.48053872]
[1771859013874,0.54806742,80.149,80.124,12.48053872]
[1771859014697,12.47520552,80.159,80.124,12.48053872]
[1771859014897,14.65671521,80.16,80.13,14.10864779]
[1771859015191,14.10864779,80.14,80.118,12.48146387]
[1771859015364,0.54806742,80.149,80.118,12.48146387]
[1771859015770,0.54806742,80.158,80.122,0.55829564]
[1771859015982,14.10864779,80.17,80.13,14.10864779]
[1771859016189,14.10864779,80.16,80.13,14.10864779]
[1771859016371,49.87999121,80.193,80.13,14.10864779]
[1771859016372,0.54806742,80.183,80.131,0.55829564]
[1771859016578,0.54806742,80.183,80.15,14.10864779]
[1771859016792,14.10864779,80.18,80.15,14.10864779]
[1771859017171,0.54806742,80.183,80.15,14.10864779]
[1771859017583,0.2,80.19,80.161,0.55829564]
[1771859017798,0.2,80.19,80.16,14.10864779]
[1771859017799,0.54806742,80.189,80.16,14.10864779]
[1771859018005,0.2,80.19,80.17,14.10864779]
[1771859019307,0.54806742,80.189,80.126,0.55829564]
[1771859019497,14.65671521,80.14,80.102,0.55829564]
[1771859019700,14.65671521,80.14,80.085,43.70356495]
[1771859019701,14.10864779,80.13,80.091,43.70029091]
[1771859020003,14.10864779,80.12,80.091,43.70029091]
[1771859020174,14.10864779,80.13,80.091,44.25858655]
[1771859020374,14.10864779,80.12,80.092,0.55829564]
[1771859020595,14.10864779,80.1,80.064,0.55829564]
[1771859020782,14.10864779,80.09,80.057,31.22775022]
[1771859020985,14.10864779,80.07,80.049,12.49234843]
[1771859021289,14.10864779,80.08,80.049,12.49234843]
[1771859021675,0.04806742,80.069,80.039,12.49380923]
[1771859021924,0.04806742,80.069,80.004,49.99749904]
[1771859021925,14.10864779,80.06,80.031,0.55829564]
[1771859022084,14.10864779,80.07,80.041,0.55829564]
[1771859022287,14.10864779,80.08,80.051,0.55829564]
[1771859022485,13.60864779,80.08,80.04,14.10864779]
[1771859022700,14.10864779,80.06,80.03,14.20864779]
[1771859023108,14.10864779,80.07,80.041,0.55829564]
[1771859023282,14.10864779,80.08,80.051,0.55829564]
[1771859023788,14.10864779,80.07,80.051,0.55829564]
[1771859023988,14.10864779,80.08,80.052,12.49188027]
[1771859024202,14.10864779,80.08,80.04,14.10864779]
[1771859024203,14.10864779,80.07,80.044,12.49299328]
[1771859024392,14.10864779,80.08,80.045,0.55829564]
[1771859024791,14.10864779,80.09,80.051,0.55829564]
[1771859024986,14.10864779,80.08,80.051,0.55829564]
[1771859025297,14.10864779,80.09,80.061,0.55829564]
[1771859025682,14.10864779,80.08,80.047,0.55829564]
[1771859025881,14.10864779,80.08,80.048,12.49250449]
[1771859026186,14.10864779,80.08,80.049,0.55829564]
[1771859026599,14.10864779,80.08,80.051,0.55829564]
[1771859026907,14.10864779,80.09,80.051,0.55829564]
[1771859027282,14.10864779,80.08,80.051,0.55829564]
[1771859027498,14.10864779,80.07,80.048,12.49250449]
[1771859027704,14.10864779,80.07,80.023,3.69383402]
[1771859027705,0.55443748,80.059,80.02,14.10864779]
[1771859027901,0.55443748,80.059,80.016,0.53993062]
[1771859027902,14.10864779,80.04,80.016,0.53993062]
[1771859028411,14.10864779,80.05,80.021,0.53993062]
[1771859028704,14.10864779,80.04,80.021,0.53993062]
[1771859028892,14.10864779,80.05,80.021,0.53993062]
[1771859029426,0.55443748,80.059,80.021,0.53993062]
[1771859029605,14.10864779,80.07,80.031,0.53993062]
[1771859029997,14.10864779,80.07,80.03,14.10864779]
[1771859029998,14.10864779,80.07,80.033,0.53993062]
[1771859030221,14.10864779,80.06,80.033,0.53993062]
[1771859030413,14.10864779,80.09,80.051,0.53993062]
[1771859030591,14.10864779,80.1,80.07,14.10864779]
[1771859030908,0.55443748,80.11,80.04,14.10864779]
[1771859030909,14.66308527,80.11,80.08,14.10864779]
[1771859031108,0.55443748,80.109,80.071,0.53993062]
[1771859031407,0.55443748,80.109,80.051,0.53993062]
[1771859031408,14.10864779,80.08,80.051,0.53993062]
[1771859031608,14.10864779,80.07,80.039,0.53993062]
[1771859031822,14.10864779,80.07,80.04,14.10864779]
[1771859032322,0.55443748,80.069,80.04,12.49371694]
[1771859032812,14.10864779,80.06,80.04,12.49371694]
[1771859033313,0.55443748,80.069,80.04,12.49371694]
[1771859033813,0.55443748,80.059,80.028,12.49562653]
[1771859034015,12.48922804,80.069,79.997,0.53993062]
[1771859034016,14.10864779,80.04,79.997,0.53993062]
[1771859034200,0.55443748,80.039,80.001,43.74945312]
[1771859034414,14.10864779,80.03,80.001,43.74945312]
[1771859034891,0.55443748,80.057,80.01,14.10864779]
[1771859035092,0.55443748,80.049,80.02,14.10864779]
[1771859035305,0.55443748,80.039,80.01,14.10864779]
[1771859035617,43.71939642,80.056,79.997,0.53993062]
[1771859035618,14.10864779,80.02,79.997,0.53993062]
[1771859035817,14.10864779,80.04,80.0,14.10864779]
[1771859036116,0.55443748,80.029,79.997,0.53993062]
[1771859036417,0.55443748,80.029,80.0,14.10864779]
[1771859036616,0.55443748,80.029,79.997,13.04037109]
[1771859036617,0.55443748,80.029,79.997,12.50044047]
[1771859036940,26.60401321,80.03,80.0,14.10864779]
[1771859037125,14.10864779,80.03,80.0,14.10864779]
[1771859037420,12.49390925,80.039,80.001,0.53993062]
[1771859037794,14.10864779,80.01,79.981,12.50296945]
[1771859038023,14.10864779,79.99,79.975,12.50381089]
[1771859038195,14.10864779,80.0,79.971,12.50453289]
[1771859038395,14.10864779,79.99,79.97,0.1]
[1771859038614,14.10864779,80.0,79.97,14.20864779]
[1771859038919,14.10864779,80.0,79.971,12.50453289]
[1771859039122,14.10864779,79.98,79.96,0.1]
[1771859039694,14.10864779,79.99,79.961,0.53993062]
[1771859040111,14.10864779,79.98,79.96,12.60624694]
[1771859040314,14.10864779,79.98,79.96,0.1]
[1771859040520,26.61033437,79.99,79.96,14.20864779]
[1771859040721,14.10864779,79.98,79.96,0.1]
[1771859040920,14.10864779,79.97,79.942,12.50897775]
[1771859041104,14.10864779,79.98,79.951,0.53993062]
[1771859041418,14.10864779,79.98,79.942,12.50897775]
[1771859041419,14.17701345,79.98,79.949,0.53993062]
[1771859041619,14.17701345,79.97,79.942,12.50897775]
[1771859041835,14.17701345,79.95,79.926,0.53993062]
[1771859042121,14.17701345,79.96,79.93,59.90665791]
[1771859042304,12.50640953,79.959,79.93,28.62929022]
[1771859042497,14.17701345,79.97,79.931,0.53993062]
[1771859042703,26.68183333,79.97,79.94,14.71694407]
[1771859042918,26.68183333,79.97,79.931,0.53993062]
[1771859043220,12.50481988,79.97,79.931,0.53993062]
[1771859043404,14.17701345,79.96,79.931,0.53993062]
[1771859043719,0.55443748,79.979,79.94,14.17701345]
[1771859043922,0.55443748,79.979,79.931,0.53993062]
[1771859043923,14.17701345,80.0,79.97,14.17701345]
[1771859044120,14.17701345,80.0,79.945,5.36086188]
[1771859044121,0.55443748,80.032,79.99,14.17701345]
[1771859044307,12.5003125,79.998,79.961,12.50609672]
[1771859044507,14.17701345,79.99,79.957,12.506714]
[1771859044827,14.17701345,79.99,79.952,0.53993062]
[1771859044828,0.55443748,79.989,79.952,0.53993062]
[1771859045120,14.17701345,79.98,79.943,0.53993062]
[1771859045315,12.49931798,80.005,79.951,0.53993062]
[1771859045526,43.7275896,80.041,79.99,14.17701345]
[1771859045706,0.55443748,80.029,80.0,14.17701345]
[1771859046227,0.55443748,80.019,79.99,14.17701345]
[1771859046414,43.7275896,80.041,79.963,3.69383402]
[1771859046415,0.55443748,80.036,80.0,14.17701345]
[1771859046619,14.17701345,80.03,80.0,14.17701345]
[1771859046826,0.55443748,80.009,79.967,0.53993062]
[1771859047007,14.17701345,80.01,79.98,14.17701345]
[1771859047206,0.55443748,80.021,79.98,14.17701345]
[1771859047207,14.17701345,80.02,79.98,14.17701345]
[1771859047413,14.17701345,80.01,79.98,14.17701345]
[1771859047729,0.55443748,80.009,79.971,0.53993062]
[1771859047926,0.55443748,80.032,79.99,14.17701345]
[1771859048106,14.17701345,80.02,79.981,0.53993062]
[1771859048620,26.67401714,80.02,79.99,14.17701345]
[1771859048817,0.55443748,80.032,79.99,14.17701345]
[1771859048818,12.49631658,80.024,79.99,14.17701345]
[1771859049023,26.67242267,80.03,80.0,14.17701345]
[1771859049206,0.55443748,80.019,79.982,12.50281313]
[1771859049526,0.55443748,80.019,79.952,50.02987722]
[1771859049527,14.17701345,80.01,79.977,43.76249552]
[1771859049715,14.73145093,80.01,79.977,12.50350857]
[1771859049911,14.73145093,80.01,79.98,14.17701345]
[1771859050120,43.73369486,80.03,79.98,14.17701345]
[1771859050121,0.55443748,80.009,79.98,14.17701345]
[1771859050518,14.17701345,80.0,79.971,12.50438681]
[1771859050717,0.55443748,80.009,79.971,43.76571904]
[1771859050934,12.49818024,80.012,79.98,14.17701345]
[1771859051309,14.17701345,80.01,79.98,14.17701345]
[1771859051618,14.17701345,79.99,79.95,14.17701345]
[1771859051804,14.17701345,79.98,79.95,14.17701345]
[1771859052010,0.55443748,79.989,79.932,0.56349788]
[1771859052330,3.69383402,80.009,79.87,6.34054259]
[1771859052331,0.55443748,79.939,79.87,6.34054259]
[1771859052543,0.55443748,79.939,79.77,42.23321488]
[1771859052544,56.7080538,79.92,79.77,42.23321488]
[1771859052837,56.7080538,79.92,79.747,41.17991801]
[1771859052838,14.17701345,79.82,79.72,1.25439036]
[1771859053000,3.69383402,79.797,79.74,14.17701345]
[1771859053207,6.51909885,79.839,79.77,14.17701345]
[1771859053208,14.17701345,79.82,79.77,14.17701345]
[1771859053407,31.18149142,79.839,79.74,14.17701345]
[1771859053408,6.51909885,79.839,79.74,14.17701345]
[1771859053627,6.51909885,79.839,79.77,14.17701345]
[1771859053628,14.17701345,79.82,79.77,14.17701345]
[1771859053834,5.92509522,79.839,79.78,14.17701345]
[1771859053835,14.17701345,79.83,79.78,14.17701345]
[1771859054017,5.92509522,79.839,79.8,14.17701345]
[1771859054331,14.17701345,79.86,79.81,14.17701345]
[1771859054534,14.17701345,79.86,79.802,3.69383402]
[1771859054535,14.17701345,79.86,79.82,14.17701345]
[1771859054933,0.59400033,79.859,79.811,31.32400295]
[1771859055239,12.51642781,79.895,79.821,0.53993062]
[1771859055406,12.51642781,79.895,79.83,14.17701345]
[1771859055605,14.17701345,79.88,79.831,0.53993062]
[1771859055825,14.17701345,79.9,79.86,14.17701345]
[1771859056033,50.02000348,79.969,79.851,0.53993062]
[1771859056034,14.17701345,79.91,79.87,14.17701345]
[1771859056221,50.0150045,79.976,79.874,0.53993062]
[1771859056409,14.17701345,79.95,79.901,0.53993062]
[1771859056613,14.17701345,79.95,79.91,14.17701345]
[1771859057214,14.17701345,79.94,79.902,43.80365948]
[1771859057910,0.58358857,79.937,79.902,12.51533128]
[1771859058126,14.17701345,79.93,79.902,12.51533128]
[1771859058627,14.17701345,79.93,79.891,43.80969069]
[1771859059123,100.03321528,79.974,79.88,0.5379824]
[1771859059124,12.51010496,79.936,79.88,26.69579161]
[1771859059324,14.17701345,79.91,79.88,43.81572357]
[1771859059528,14.17701345,79.89,79.85,14.17701345]
[1771859059708,14.17701345,79.86,79.83,43.84316672]
[1771859059907,0.58022108,79.877,79.84,14.17701345]
[1771859060209,14.17701345,79.88,79.85,14.17701345]
[1771859060408,14.17701345,79.88,79.84,14.75733189]
[1771859060614,14.17701345,79.86,79.83,43.84316672]
[1771859060827,0.58022108,79.87,79.83,58.02018017]
[1771859060828,14.75723453,79.87,79.83,58.02018017]
[1771859061018,14.17701345,79.88,79.84,14.75733189]
[1771859061220,14.17701345,79.87,79.84,14.75733189]
[1771859061412,14.17701345,79.87,79.83,43.84316672]
[1771859061413,14.17701345,79.87,79.83,58.02018017]
[1771859061812,14.17701345,79.86,79.83,43.84316672]
[1771859062010,14.75723453,79.85,79.815,12.52897325]
[1771859062623,50.04766097,79.924,79.811,31.32400295]
[1771859062624,14.17701345,79.87,79.832,43.84206834]
[1771859063704,0.58022108,79.879,79.832,43.84206834]
[1771859063705,14.17701345,79.86,79.832,12.52630524]
[1771859064207,12.51909161,79.878,79.818,0.58031844]
[1771859064208,14.17701345,79.85,79.822,12.52774612]
[1771859064834,14.17701345,79.85,79.821,31.32007867]
[1771859065041,14.17701345,79.86,79.821,31.32007867]
[1771859065334,14.17701345,79.87,79.83,14.75733189]
[1771859065505,14.17701345,79.87,79.831,0.58031844]
[1771859065710,14.17701345,79.86,79.831,0.58031844]
[1771859065931,0.58022108,79.875,79.83,14.17701345]
[1771859065932,14.17701345,79.87,79.83,14.17701345]
[1771859066131,14.75723453,79.88,79.841,0.58031844]
[1771859066738,14.75723453,79.88,79.815,3.69383402]
[1771859066739,0.58022108,79.912,79.839,3.69383402]
[1771859066914,0.58022108,79.899,79.87,14.17701345]
[1771859067237,0.58022108,79.899,79.86,14.17701345]
[1771859067737,14.17701345,79.91,79.88,14.17701345]
[1771859068118,0.58022108,79.919,79.87,14.17701345]
[1771859068416,14.17701345,79.92,79.881,0.58031844]
[1771859068617,12.5110144,79.93,79.835,50.10333813]
[1771859068618,14.17701345,79.93,79.9,14.17701345]
[1771859068844,0.58022108,79.929,79.891,12.51705448]
[1771859069032,0.58022108,79.929,79.9,14.17701345]
[1771859069220,3.69383402,79.968,79.891,12.51705448]
[1771859069221,14.17701345,79.94,79.91,14.17701345]
[1771859069547,0.58022108,79.942,79.91,14.17701345]
[1771859069735,14.17701345,79.94,79.91,14.17701345]
[1771859069936,14.17701345,79.94,79.9,14.75733189]
[1771859070312,14.17701345,79.94,79.91,14.17701345]
[1771859070744,14.17701345,79.97,79.93,14.17701345]
[1771859070919,0.58022108,79.971,79.94,14.17701345]
[1771859071121,14.17701345,79.96,79.931,12.51079055]
[1771859071543,0.58022108,79.969,79.931,43.78776694]
[1771859071838,0.58022108,79.969,79.931,12.51079055]
[1771859072012,12.50460307,79.971,79.926,12.51144486]
[1771859072013,0.58022108,79.959,79.926,12.51144486]
[1771859072217,14.17701345,79.95,79.921,12.51226205]
[1771859072435,14.75723453,79.95,79.921,12.51226205]
[1771859073033,14.17701345,79.96,79.921,43.79315192]
[1771859073242,0.58022108,79.959,79.93,14.17701345]
[1771859073626,14.17701345,79.97,79.93,14.17701345]
[1771859073822,14.17701345,79.96,79.93,14.17701345]
[1771859074031,14.17701345,79.94,79.91,14.17701345]
[1771859074717,0.58022108,79.954,79.902,0.58031844]
[1771859074943,0.58022108,79.954,79.92,14.17701345]
[1771859075128,14.17701345,79.96,79.93,14.17701345]
[1771859075318,14.17701345,79.94,79.911,12.51392173]
[1771859075514,0.58022108,79.949,79.911,43.79872607]
[1771859076045,0.58022108,79.949,79.92,14.17701345]
[1771859076241,0.58022108,79.949,79.911,44.37904451]
[1771859076420,0.58022108,79.949,79.911,43.79872607]
[1771859077120,0.58022108,79.949,79.91,14.17701345]
[1771859077415,0.58022108,79.949,79.9,43.80475593]
[1771859077416,0.58022108,79.929,79.9,26.692658]
[1771859077621,14.17701345,79.94,79.9,26.692658]
[1771859077822,14.17701345,79.94,79.91,14.17701345]
[1771859078027,14.17701345,79.94,79.9,57.98176938]
[1771859078342,14.17701345,79.93,79.9,12.51564455]
[1771859078542,14.17701345,79.93,79.9,26.692658]
[1771859078745,0.58022108,79.939,79.9,57.98176938]
[1771859078926,14.17701345,79.94,79.91,14.17701345]
[1771859079123,14.17701345,79.95,79.921,12.51235595]
[1771859079424,14.17701345,79.94,79.921,12.51235595]
[1771859079643,14.17701345,79.95,79.921,12.51235595]
[1771859080027,14.17701345,79.95,79.921,43.79324582]
[1771859080227,0.58022108,79.949,79.917,12.51297084]
[1771859080539,14.17701345,79.94,79.917,12.51297084]
[1771859080722,14.17701345,79.95,79.92,14.17701345]
[1771859081042,0.58022108,79.956,79.921,12.51235595]
[1771859081349,14.17701345,79.95,79.921,43.79324582]
[1771859081845,14.17701345,79.96,79.921,43.79324582]
[1771859082140,31.26208641,79.97,79.921,43.79324582]
[1771859082141,14.75723453,79.97,79.94,14.17701345]
[1771859082322,14.17701345,79.95,79.921,12.51235595]
[1771859082726,0.58022108,79.959,79.921,12.51235595]
[1771859082923,0.58022108,79.959,79.921,43.79324582]
[1771859083118,14.17701345,79.97,79.93,14.17701345]
[1771859083324,14.17701345,79.96,79.93,14.17701345]